[Event "4th Nikity Blitz 2024"]
[Site "Niteroi"]
[Date "2024.08.31"]
[Round "8.2"]
[White "Pires, Marcos Vinicius Tors"]
[Black "Filgueiras, Nathan Felipe"]
[Result "1/2-1/2"]
[ECO "D02"]
[WhiteElo "2212"]
[BlackElo "2316"]
[Annotator "RC"]
[PlyCount "150"]
[EventDate "2024.08.28"]
[EventType "swiss"]
[EventCountry "BRA"]
[SourceTitle "playchess.com"]
[Source "ChessBase"]
[SourceQuality "1"]
[TimeControl "180+2"]

1. d4 {[%emt 0:00:03]} Nf6 {[%emt 0:00:01]} 2. Bf4 {[%emt 0:00:02]} e6 {[%emt 0:00:01]} 3. e3 {[%emt 0:00:02]} c5 {[%emt 0:00:01]} 4. c3 {[%emt 0:00:02]} Nc6 {[%emt 0:00:01]} 5. Nd2 {[%emt 0:00:02]} d5 {[%emt 0:00:03]} 6. Ngf3 {[%emt 0:00:03]} Nh5 {[%emt 0:00:01]} 7. Bg5 {[%emt 0:00:13]} Qb6 {[%emt 0:00:02]} 8. Rb1 {[%emt 0:00:07]} h6 {[%emt 0:00:02]} 9. Bh4 {[%emt 0:00:02]} g5 {[%emt 0:00:02]} 10. Bg3 {[%emt 0:00:08]} cxd4 {[%emt 0:00:07]} 11. exd4 {[%emt 0:00:05]} Nxg3 {[%emt 0:00:03]} 12. hxg3 {[%emt 0:00:01]} Bg7 {[%emt 0:00:12]} 13. Bd3 {[%emt 0:00:05]} Qc7 {[%emt 0:00:04]} 14. Qe2 {[%emt 0:00:11]} g4 {[%emt 0:00:17]} 15. Nh4 {[%emt 0:00:07]} h5 {[%emt 0:00:12]} 16. Nf5 {[%emt 0:00:24]} Kf8 {[%emt 0:00:18]} 17. Nxg7 {[%emt 0:00:04]} Kxg7 {[%emt 0:00:02]} 18. Nf1 {[%emt 0:00:11]} e5 {[%emt 0:00:25]} 19. dxe5 {[%emt 0:00:03]} Qxe5 {[%emt 0:00:17]} 20. Ne3 {[%emt 0:00:40]} Be6 {[%emt 0:00:08]} 21. O-O {[%emt 0:00:17]} Rae8 {[%emt 0:00:12]} 22. Rfe1 {[%emt 0:00:12]} Qg5 {[%emt 0:00:13]} 23. Qd2 {[%emt 0:00:11]} Qf6 {[%emt 0:00:05]} 24. Nc2 {[%emt 0:00:05]} h4 {[%emt 0:00:07]} 25. Qf4 {[%emt 0:00:04]} hxg3 {[%emt 0:00:09]} 26. Qxf6+ {[%emt 0:00:07]} Kxf6 {[%emt 0:00:02]} 27. fxg3 {[%emt 0:00:02]} Rh5 {[%emt 0:00:17]} 28. Rf1+ {[%emt 0:00:07]} Ke7 {[%emt 0:00:02]} 29. Rbe1 {[%emt 0:00:02]} Reh8 {[%emt 0:00:09]} 30. Kf2 {[%emt 0:00:03]} Kd6 {[%emt 0:00:04]} 31. a3 {[%emt 0:00:07]} a5 {[%emt 0:00:04]} 32. Ke3 {[%emt 0:00:03]} Rh2 {[%emt 0:00:04]} 33. Rf2 {[%emt 0:00:02]} R2h5 {[%emt 0:00:02]} 34. Kd2 {[%emt 0:00:01]} Re5 {[%emt 0:00:14]} 35. Ne3 {[%emt 0:00:05]} d4 {[%emt 0:00:05]} 36. Nc4+ {[%emt 0:00:07]} Bxc4 {[%emt 0:00:02]} 37. Bxc4 {[%emt 0:00:01]} dxc3+ {[%emt 0:00:01]} 38. bxc3 {[%emt 0:00:02]} Rxe1 {[%emt 0:00:01]} 39. Kxe1 {[%emt 0:00:01]} Ne5 {[%emt 0:00:03]} 40. Be2 {[%emt 0:00:04]} Rc8 {[%emt 0:00:02]} 41. Kd2 {[%emt 0:00:01]} Rc5 {[%emt 0:00:02]} 42. Rf4 {[%emt 0:00:01]} Ke6 {[%emt 0:00:01]} 43. Bxg4+ {[%emt 0:00:02]} Nxg4 {[%emt 0:00:01]} 44. Rxg4 {[%emt 0:00:00]} Rb5 {[%emt 0:00:01]} 45. Kd3 {[%emt 0:00:01]} Rb2 {[%emt 0:00:01]} 46. Re4+ {[%emt 0:00:03]} Kd6 {[%emt 0:00:01]} 47. Rf4 {[%emt 0:00:00]} Ke6 {[%emt 0:00:01]} 48. Re4+ {[%emt 0:00:01]} Kd6 {[%emt 0:00:00]} 49. Ra4 {[%emt 0:00:00]} b6 {[%emt 0:00:01]} 50. Rd4+ {[%emt 0:00:01]} Ke6 {[%emt 0:00:02]} 51. Re4+ {[%emt 0:00:01]} Kd6 {[%emt 0:00:01]} 52. Rd4+ {[%emt 0:00:10]} Ke6 {[%emt 0:00:02]} 53. Re4+ {[%emt 0:00:01]} Kf6 {[%emt 0:00:03]} 54. Rf4+ {[%emt 0:00:01]} Kg6 {[%emt 0:00:01]} 55. Rg4+ {[%emt 0:00:01]} Kf5 {[%emt 0:00:02]} 56. Rf4+ {[%emt 0:00:01]} Ke6 {[%emt 0:00:01]} 57. Re4+ {[%emt 0:00:01]} Kd6 {[%emt 0:00:03]} 58. Rd4+ {[%emt 0:00:00]} Kc6 {[%emt 0:00:01]} 59. Rf4 {[%emt 0:00:03]} Rxg2 {[%emt 0:00:05]} 60. Rxf7 {[%emt 0:00:02]} Rxg3+ {[%emt 0:00:01]} 61. Kc4 {[%emt 0:00:00]} Rg4+ {[%emt 0:00:02]} 62. Kb3 {[%emt 0:00:03]} a4+ {[%emt 0:00:00]} 63. Kc2 {[%emt 0:00:03]} Rg2+ {[%emt 0:00:02]} 64. Kd3 {[%emt 0:00:01]} Ra2 {[%emt 0:00:01]} 65. Kc4 {[%emt 0:00:04]} Rxa3 {[%emt 0:00:03]} 66. Rf6+ {[%emt 0:00:01]} Kb7 {[%emt 0:00:01]} 67. Kb4 {[%emt 0:00:06]} Ra1 {[%emt 0:00:03]} 68. Kb5 {[%emt 0:00:02]} a3 {[%emt 0:00:04]} 69. Rxb6+ {[%emt 0:00:02]} Kc7 {[%emt 0:00:04]} 70. Ra6 {[%emt 0:00:02]} a2 {[%emt 0:00:04]} 71. Kc4 {[%emt 0:00:01]} Kb7 {[%emt 0:00:02]} 72. Ra4 {[%emt 0:00:02]} Kc6 {[%emt 0:00:01]} 73. Kb3 {[%emt 0:00:07]} Kb5 {[%emt 0:00:04]} 74. Rxa2 {[%emt 0:00:03]} Rxa2 {[%emt 0:00:01]} 75. Kxa2 {[%emt 0:00:01]} Kc4 {[%emt 0:00:01]} 1/2-1/2

[Event "4th Nikity Blitz 2024"]
[Site "Niteroi"]
[Date "2024.08.31"]
[Round "8.3"]
[White "Do Valle Cardoso, Lucas"]
[Black "Rangel, Daniel"]
[Result "1-0"]
[ECO "B76"]
[WhiteElo "2365"]
[BlackElo "2198"]
[Annotator "RC"]
[PlyCount "61"]
[EventDate "2024.08.28"]
[EventType "swiss"]
[EventCountry "BRA"]
[SourceTitle "playchess.com"]
[Source "ChessBase"]
[SourceQuality "1"]
[TimeControl "180+2"]

1. e4 {[%emt 0:00:01]} c5 {[%emt 0:00:08]} 2. Nf3 {[%emt 0:00:02]} d6 {[%emt 0:00:00]} 3. d4 {[%emt 0:00:00]} cxd4 {[%emt 0:00:01]} 4. Nxd4 {[%emt 0:00:01]} Nf6 {[%emt 0:00:02]} 5. Nc3 {[%emt 0:00:00]} g6 {[%emt 0:00:01]} 6. Be3 {[%emt 0:00:02]} Bg7 {[%emt 0:00:00]} 7. f3 {[%emt 0:00:00]} O-O {[%emt 0:00:02]} 8. Qd2 {[%emt 0:00:01]} Nc6 {[%emt 0:00:02]} 9. O-O-O {[%emt 0:00:02]} Nxd4 {[%emt 0:00:01]} 10. Bxd4 {[%emt 0:00:01]} Be6 {[%emt 0:00:01]} 11. Kb1 {[%emt 0:00:01]} Qc7 {[%emt 0:00:01]} 12. g4 {[%emt 0:00:05]} Rfc8 {[%emt 0:00:02]} 13. h4 {[%emt 0:00:01]} Qa5 {[%emt 0:00:00]} 14. a3 {[%emt 0:00:02]} Rab8 {[%emt 0:00:01]} 15. h5 {[%emt 0:00:04]} b5 {[%emt 0:00:02]} 16. h6 {[%emt 0:00:02]} b4 {[%emt 0:00:42]} 17. Nb5 {[%emt 0:00:01]} Bf8 {[%emt 0:00:39]} 18. Qxb4 {[%emt 0:00:17]} Qd8 {[%emt 0:00:21]} 19. Bxa7 {[%emt 0:00:32]} Rb7 {[%emt 0:00:11]} 20. a4 {[%emt 0:00:13]} Nd7 {[%emt 0:00:29]} 21. Bd4 {[%emt 0:00:03]} Ra8 {[%emt 0:00:12]} 22. b3 {[%emt 0:00:04]} Qb8 {[%emt 0:00:07]} 23. Bc4 {[%emt 0:00:11]} Bxc4 {[%emt 0:00:10]} 24. Qxc4 {[%emt 0:00:02]} e6 {[%emt 0:00:14]} 25. f4 {[%emt 0:00:17]} Nb6 {[%emt 0:00:02]} 26. Bxb6 {[%emt 0:00:03]} Rxb6 {[%emt 0:00:00]} 27. f5 {[%emt 0:00:03]} d5 {[%emt 0:00:10]} 28. exd5 {[%emt 0:00:02]} exf5 {[%emt 0:00:08]} 29. gxf5 {[%emt 0:00:01]} Ra5 {[%emt 0:00:04]} 30. fxg6 {[%emt 0:00:06]} hxg6 {[%emt 0:00:04]} 31. Qc3 {[%emt 0:00:23]} 1-0

[Event "4th Nikity Blitz 2024"]
[Site "Niteroi"]
[Date "2024.08.31"]
[Round "8.4"]
[White "Mekhitarian, Krikor Sevag"]
[Black "Aranha Filho, Alvaro Z."]
[Result "1-0"]
[ECO "D45"]
[WhiteElo "2560"]
[BlackElo "2196"]
[Annotator "TA"]
[PlyCount "101"]
[EventDate "2024.08.28"]
[EventType "swiss"]
[EventCountry "BRA"]
[SourceTitle "playchess.com"]
[Source "ChessBase"]
[SourceQuality "1"]
[TimeControl "180+2"]

{[%evp 19,101,0,0,0,-14,-12,0,-6,-14,-17,0,10,33,20,29,23,86,76,128,94,116,114,121,126,122,113,114,118,118,100,113,106,104,93,99,93,113,98,96,97,100,93,97,0,91,91,111,111,114,121,144,152,152,127,127,127,272,272,438,163,163,161,860,787,717,611,775,615,761,776,1142,1010,1749,1714,1734,1675,2700,2249,6095,1632,1933,1378,6199,5527]} 1. Nf3 {[%emt 0:00:02]} d5 {[%emt 0:00:03]} 2. c4 {[%emt 0:00:00]} c6 {[%emt 0:00:04]} 3. d4 {[%emt 0:00:01]} Nf6 {[%emt 0:00:03]} 4. Nc3 {[%emt 0:00:04]} e6 {[%emt 0:00:01]} 5. Qc2 {[%emt 0:00:01]} Nbd7 {[%emt 0:00:07]} 6. e4 {[%emt 0:00:01]} dxe4 {[%emt 0:00:01]} 7. Nxe4 {[%emt 0:00:01]} Nxe4 {[%emt 0:00:03]} 8. Qxe4 {[%emt 0:00:01]} Bb4+ {[%emt 0:00:01]} 9. Bd2 {[%emt 0:00:01]} Bxd2+ {[%emt 0:00:02]} 10. Nxd2 {[%emt 0:00:01]} O-O {[%emt 0:00:08]} 11. O-O-O {[%emt 0:00:05]} c5 {[%emt 0:00:10]} 12. Nf3 {[%emt 0:00:08]} cxd4 {[%emt 0:00:08]} 13. Qxd4 {[%emt 0:00:09] The position is equal.} Qa5 {[%emt 0:00:07] Inhibits Ne5.} 14. Kb1 {[%emt 0:00:10]} Qc5 {[%emt 0:00:36]} 15. Bd3 {[%emt 0:00:39]} Qxd4 {[%emt 0:00:23]} 16. Nxd4 {[%emt 0:00:01]} Nc5 {[%emt 0:00:11]} 17. Bc2 {[%emt 0:00:02]} e5 {[%emt 0:00:08]} (17... Bd7 $11 {keeps the balance.}) 18. Nb5 $36 {[%emt 0:00:06][%mdl 2048] White is on the roll.} Bd7 {[%emt 0:00:14]} (18... f6 $142) 19. Rd5 {[%emt 0:00:22]} Bxb5 {[%emt 0:00:43]} 20. cxb5 {[%emt 0:00:05]} Rac8 {[%emt 0:00:11]} 21. Rxe5 {[%emt 0:00:03]} Rfe8 {[%emt 0:00:03]} 22. Rhe1 {[%emt 0:00:03]} Rxe5 {[%emt 0:00:00]} 23. Rxe5 {[%emt 0:00:02][%mdl 4096] Endgame. Bf5 is the strong threat. KRB-KRN} Kf8 {[%emt 0:00:02]} 24. h4 {[%emt 0:00:18] White is more active.} (24. Bxh7 g6 25. Re3 Rc7 $19) 24... h6 {[%emt 0:00:03]} 25. Re3 {[%emt 0:00:14]} b6 {[%emt 0:00:04]} 26. Kc1 {[%emt 0:00:17]} Ne6 {[%emt 0:00:06] [#] ...Nd4 would now be deadly.} 27. Kd2 {[%emt 0:00:08]} Rc5 {[%emt 0:00:05]} 28. Bd3 {[%emt 0:00:06]} Nf4 {[%emt 0:00:06]} 29. Bf1 {[%emt 0:00:09]} Rd5+ {[%emt 0:00:03]} 30. Ke1 {[%emt 0:00:16]} Rc5 {[%emt 0:00:01]} 31. Kd2 {[%emt 0:00:12] Against Rc1} Rd5+ $1 {[%emt 0:00:00]} 32. Kc2 {[%emt 0:00:05]} Rc5+ {[%emt 0:00:02]} 33. Rc3 {[%emt 0:00:09]} Ne6 {[%emt 0:00:01]} 34. b4 {[%emt 0:00:03]} Rxc3+ {[%emt 0:00:02]} 35. Kxc3 {[%emt 0:00:01] KB-KN} Ke7 {[%emt 0:00:00] [#]} 36. Bc4 $1 {[%emt 0:00:02]} Nf4 {[%emt 0:00:03]} 37. g3 {[%emt 0:00:05]} Ng6 {[%emt 0:00:00] A mistake that costs the game.} (37... Nh3 $16 {was worth a try.}) 38. Kd4 $18 {[%emt 0:00:00]} f6 $2 {[%emt 0:00:04]} (38... Nf8 39. Kd5 Nd7) 39. Kd5 $2 {[%emt 0:00:01]} (39. h5 Ne5 40. Be2) 39... Kd7 {[%emt 0:00:01]} 40. Bd3 {[%emt 0:00:02]} Ne5 {[%emt 0:00:01]} (40... Ne7+ 41. Ke4 Kd6) 41. Bf5+ {[%emt 0:00:01] White is clearly winning.} Ke7 {[%emt 0:00:01]} 42. f4 {[%emt 0:00:02]} Nf3 {[%emt 0:00:04]} 43. Be4 {[%emt 0:00:03]} Nd2 {[%emt 0:00:05]} 44. Bd3 {[%emt 0:00:02] Prevents Nf1} Nf3 {[%emt 0:00:04]} 45. Kc6 {[%emt 0:00:01]} Nd4+ {[%emt 0:00:01]} 46. Kb7 {[%emt 0:00:01]} Kd6 {[%emt 0:00:01]} 47. Kxa7 {[%emt 0:00:02]} Kc7 {[%emt 0:00:01]} 48. a4 {[%emt 0:00:04][%cal Ba2a4,Ba4a5][%mdl 32]} Nb3 {[%emt 0:00:04]} 49. Bc2 {[%emt 0:00:03]} (49. a5 $142 bxa5 50. b6+ Kd6 51. b7) 49... Nd4 {[%emt 0:00:01]} 50. Bd1 {[%emt 0:00:02]} Nf5 {[%emt 0:00:04]} 51. a5 {[%emt 0:00:00] Weighted Error Value: White=0.28 (precise) /Black=0.24 (precise) .  Mistake:       	White=1     	Black=5      OK:         	White=7     	Black=11     Best:        	White=3     	Black=1      Strong:       	---       	Black=1} 1-0

[Event "4th Nikity Blitz 2024"]
[Site "Niteroi"]
[Date "2024.08.31"]
[Round "8.5"]
[White "Quintiliano, Renato R."]
[Black "De Souza, Regis Gabetta"]
[Result "0-1"]
[ECO "D02"]
[WhiteElo "2499"]
[BlackElo "2116"]
[Annotator "TA"]
[PlyCount "90"]
[EventDate "2024.08.28"]
[EventType "swiss"]
[EventCountry "BRA"]
[SourceTitle "playchess.com"]
[Source "ChessBase"]
[SourceQuality "1"]
[TimeControl "180+2"]

{[%evp 15,90,23,27,10,18,13,14,5,9,4,13,0,0,-22,14,12,36,47,98,50,139,125,128,132,120,106,188,100,95,16,13,15,50,38,109,54,105,96,345,36,29,38,33,46,43,-6,-9,-42,-20,-11,-9,-49,-39,-72,-72,-75,-26,-86,-21,-23,-18,-32,6,20,35,0,0,-26,-27,-34,-47,-33,-40,-179,-173,-1076,-1058]} 1. d4 {[%emt 0:00:01]} d5 {[%emt 0:00:01]} 2. Nf3 {[%emt 0:00:02]} Nf6 {[%emt 0:00:01]} 3. Bf4 {[%emt 0:00:00]} e6 {[%emt 0:00:07]} 4. e3 {[%emt 0:00:01]} Bd6 {[%emt 0:00:01]} 5. Nbd2 {[%emt 0:00:01]} O-O {[%emt 0:00:06]} 6. Bd3 {[%emt 0:00:01]} c5 {[%emt 0:00:07]} 7. dxc5 {[%emt 0:00:03]} Bxc5 {[%emt 0:00:01]} 8. O-O {[%emt 0:00:02]} Nc6 {[%emt 0:00:01]} 9. c4 {[%emt 0:00:04]} Bd6 {[%emt 0:00:09]} 10. Bg5 {[%emt 0:00:04][%cal Bf4g5,Bg5h4,Bh4g3][%mdl 32]} Be7 {[%emt 0:00:02]} 11. Rc1 {[%emt 0:00:04] The position is equal.} h6 {[%emt 0:00:04]} 12. Bh4 {[%emt 0:00:02]} d4 {[%emt 0:00:25]} 13. exd4 {[%emt 0:00:09]} Nxd4 {[%emt 0:00:02]} 14. Nb3 {[%emt 0:00:14]} Nc6 {[%emt 0:00:14]} 15. Re1 {[%emt 0:00:06]} Nd7 {[%emt 0:00:33]} 16. Bg3 {[%emt 0:00:02]} Bf6 {[%emt 0:00:05]} ({Better is} 16... Nf6 $14) 17. Qe2 {[%emt 0:00:04]} (17. Bb1 $16) 17... g6 {[%emt 0:00:08]} (17... a5 $1 $14) 18. Rcd1 {[%emt 0:00:05]} Qb6 {[%emt 0:00:05]} 19. h4 {[%emt 0:00:13][%cal Oh4h5] Hoping for h5!} h5 {[%emt 0:00:08]} 20. Ng5 {[%emt 0:00:01][%cal Od3g6] Threatens to win with Bxg6!} Nde5 {[%emt 0:00:07]} (20... e5 $16) 21. Bb1 {[%emt 0:00:08]} (21. c5 $18 Qb4 22. Bc2) 21... a5 $16 {[%emt 0:00:08]} 22. Ne4 {[%emt 0:00:04]} (22. c5 $16 Qa6 23. Qe4) 22... Bg7 {[%emt 0:00:02]} 23. c5 {[%emt 0:00:01]} Qa6 {[%emt 0:00:06]} 24. Qc2 {[%emt 0:00:19]} Ng4 {[%emt 0:00:04]} (24... a4 $14) 25. f3 {[%emt 0:00:23]} (25. Bd6 $16) 25... Nf6 {[%emt 0:00:12]} (25... Nh6 $1 $14) 26. Nd6 {[%emt 0:00:09]} Nd5 $2 {[%emt 0:00:04]} (26... Bd7 $16) 27. Qd2 $2 {[%emt 0:00:07]} ({White has to play} 27. Nxf7 $1 $18 Nde7 (27... Rxf7 $2 {is the wrong capture.} 28. Rxd5 Rf5 29. Rd6 $18) 28. Nd6) 27... a4 $14 {[%emt 0:00:02]} 28. Bd3 {[%emt 0:00:01]} Qa7 {[%emt 0:00:03]} 29. Nb5 {[%emt 0:00:01]} Qa6 {[%emt 0:00:19]} 30. Nc1 {[%emt 0:00:01]} (30. Nc7 $14 Qa7 31. Nxa8 (31. Nb5 Qa6 $16)) 30... Qa5 $11 {[%emt 0:00:05]} 31. Bd6 {[%emt 0:00:19]} Qxd2 {[%emt 0:00:02]} 32. Rxd2 {[%emt 0:00:01]} Rd8 {[%emt 0:00:02]} 33. Be4 {[%emt 0:00:04]} (33. Bc4 $5) 33... Nf6 {[%emt 0:00:07]} 34. Nd3 {[%emt 0:00:02]} Nxe4 {[%emt 0:00:01]} 35. Rxe4 {[%emt 0:00:01] [#]} e5 {[%emt 0:00:06]} (35... b6 $1 $17 36. cxb6 (36. Bc7 $2 Ba6 $17) 36... Ba6) 36. Nc7 {[%emt 0:00:03] [#]} (36. Ree2 $11) 36... Ra7 {[%emt 0:00:02]} (36... Ra5 $1 $17) 37. Rc4 {[%emt 0:00:05]} (37. Nxe5 $2 {perishes.} Bxe5 38. Rde2 Bxd6 39. cxd6 Bf5 (39... Bd7 $2 40. Rf4 $19) 40. Re8+ Rxe8 41. Rxe8+ Kg7 $19) 37... Bf5 {[%emt 0:00:02]} 38. Nb4 {[%emt 0:00:03]} Nxb4 {[%emt 0:00:02]} 39. Rxb4 {[%emt 0:00:01]} a3 {[%emt 0:00:01][%cal Oe5e4]} 40. Nb5 {[%emt 0:00:03]} Ra5 {[%emt 0:00:05]} 41. Nxa3 {[%emt 0:00:02]} Rxc5 {[%emt 0:00:01]} 42. Bxc5 {[%emt 0:00:04]} Rxd2 {[%emt 0:00:01]} 43. Rxb7 {[%emt 0:00:02]} e4 {[%emt 0:00:02]} 44. fxe4 {[%emt 0:00:01]} ({White should play} 44. Rb8+ $15 Kh7 45. Nc4) 44... Bxe4 $19 {[%emt 0:00:02] A strong pair of Bishops.} 45. Bf2 $2 {[%emt 0:00:03]} (45. Rb8+ Kh7 46. g3) 45... Bxb7 {[%emt 0:00:01] Quite a comeback for Black.   Weighted Error Value: White=0.50/Black=0.31.  Loses game:     	---       	Black=1      Missed win:     	White=1     	---        Mistake:       	White=8     	Black=7      Inaccurate:     	White=5     	Black=3      OK:         	White=6     	Black=13     Best:        	White=1     	Black=4} 0-1

[Event "4th Nikity Blitz 2024"]
[Site "Niteroi"]
[Date "2024.08.31"]
[Round "9.1"]
[White "Santiago, Yago De Moura"]
[Black "Mekhitarian, Krikor Sevag"]
[Result "1-0"]
[ECO "D90"]
[WhiteElo "2455"]
[BlackElo "2560"]
[Annotator "TA"]
[PlyCount "85"]
[EventDate "2024.08.28"]
[EventType "swiss"]
[EventCountry "BRA"]
[SourceTitle "playchess.com"]
[Source "ChessBase"]
[SourceQuality "1"]
[TimeControl "180+2"]

{[%evp 9,85,-9,-16,-21,-17,-57,-34,-40,0,0,31,20,27,15,23,12,43,47,121,0,10,0,24,12,62,32,51,48,154,111,125,85,93,9,33,6,18,6,29,-107,-108,-87,-8,-7,-7,-8,0,0,32,10,27,47,642,645,722,688,688,686,688,675,824,718,825,823,899,806,981,1011,1044,1093,1056,1008,1033,1108,1961,1920,29976,29974]} 1. d4 {[%emt 0:00:02]} Nf6 {[%emt 0:00:00]} 2. c4 {[%emt 0:00:01]} g6 {[%emt 0:00:01]} 3. Nc3 {[%emt 0:00:04]} d5 {[%emt 0:00:01]} 4. Nf3 {[%emt 0:00:01]} Bg7 {[%emt 0:00:00]} 5. h4 {[%emt 0:00:01]} dxc4 {[%emt 0:00:04][%cal Oc7c5]} 6. e4 {[%emt 0:00:03] [#]} c5 $1 {[%emt 0:00:00]} 7. h5 {[%emt 0:00:01]} (7. Bxc4 cxd4) 7... Nxh5 {[%emt 0:00:30]} 8. d5 {[%emt 0:00:01] Black is slightly better.} b5 {[%emt 0:00:14]} 9. Nxb5 {[%emt 0:00:02]} (9. e5 O-O 10. Rh4 (10. Nxb5 Bg4 $17) 10... b4 $15) 9... Qa5+ {[%emt 0:00:01] [#]} 10. Nc3 $1 {[%emt 0:00:01][%cal Od1c2][%mdl 1024] White has compensation.} Nd7 {[%emt 0:00:01]} (10... O-O 11. Bd2) 11. Qc2 {[%emt 0:01:13][%cal Oc1d2]} (11. Bxc4 $2 Bxc3+ 12. Kf1 Ba6 $19) 11... Ba6 {[%emt 0:00:13]} 12. Be2 {[%emt 0:00:18]} Rb8 {[%emt 0:00:35][%cal Oh5f4]} 13. Kf1 {[%emt 0:00:10]} O-O {[%emt 0:00:30] [#]} (13... Qc7 $14) 14. Bd2 {[%emt 0:00:18]} (14. e5 $1 $16) 14... Qc7 $11 {[%emt 0:00:23]} 15. g3 {[%emt 0:00:04] Repels Nf4} Qd6 {[%emt 0:00:34]} 16. Rd1 {[%emt 0:00:11]} Qb6 {[%emt 0:00:06]} (16... f5 $11) 17. Bc1 $14 {[%emt 0:00:02][%cal Oe4e5]} Nhf6 {[%emt 0:00:02]} 18. Kg2 {[%emt 0:00:13]} Bb7 {[%emt 0:00:11]} ({Black should play} 18... Qb7 $14) 19. Rh4 {[%emt 0:00:03][%cal Oc1f4] White is more active.} h5 {[%emt 0:00:01]} 20. Bxc4 {[%emt 0:00:20]} Ng4 {[%emt 0:00:01]} 21. Bb5 {[%emt 0:00:23]} ({White should try} 21. Na4 $16 Qd6 22. b3) 21... Rbd8 {[%emt 0:00:01]} 22. a4 {[%emt 0:00:14]} a6 23. Bc4 {[%emt 0:00:00]} Nde5 {[%emt 0:00:02]} 24. Be2 {[%emt 0:00:00]} (24. Nxe5 $11 Nxe5 25. b3) 24... c4 $17 {[%emt 0:00:04]} 25. Rf1 {[%emt 0:00:00] [#]} e6 {[%emt 0:00:03]} (25... Nd3 $1 $17 {And now ...f5 would win.} 26. Bxd3 cxd3 27. Qxd3 f5) 26. Nxe5 $11 {[%emt 0:00:00]} (26. Bg5 {seems wilder.} Rd7 27. Nxe5 Nxe5 28. Rd1) 26... Nxe5 {[%emt 0:00:01]} 27. Be3 {[%emt 0:00:00]} Qd6 {[%emt 0:00:03][%cal Re6d5]} 28. Rd1 {[%emt 0:00:01]} exd5 {[%emt 0:00:03]} 29. Nxd5 {[%emt 0:00:01] Black must now prevent Bg5.} Nd3 {[%emt 0:00:05]} 30. Bxd3 {[%emt 0:00:06]} (30. Qxc4 $2 {too greedy.} Nxb2 (30... Bxd5 $2 {loses.} 31. Qxd3 Bxb2 32. exd5 $18) 31. Qb3 Nxd1 32. Qxd1 Rfe8 $19) 30... Bxd5 {[%emt 0:00:05][%mdl 8192] This costs Black the game.} (30... cxd3 $14 31. Qxd3 (31. Rxd3 Qe6 $14) 31... Qe6) 31. Be2 $18 {[%emt 0:00:01]} Bxe4+ {[%emt 0:00:04]} 32. Rxe4 {[%emt 0:00:01]} Qc6 {[%emt 0:00:00]} 33. Rxd8 {[%emt 0:00:01]} Rxd8 {[%emt 0:00:01]} 34. Qxc4 {[%emt 0:00:01]} Qf6 {[%emt 0:00:10]} 35. Bc1 {[%emt 0:00:09]} Qb6 {[%emt 0:00:00]} 36. Bf3 {[%emt 0:00:03]} Qb8 {[%emt 0:00:00]} 37. Qe2 {[%emt 0:00:01]} Rc8 {[%emt 0:00:00]} 38. Bf4 {[%emt 0:00:02]} Qb3 {[%emt 0:00:02]} 39. Re8+ {[%emt 0:00:01]} Rxe8 {[%emt 0:00:01]} 40. Qxe8+ {[%emt 0:00:01]} Kh7 {[%emt 0:00:00]} 41. Qc6 {[%emt 0:00:03]} a5 {[%emt 0:00:01]} 42. Bd5 {[%emt 0:00:02]} Qxb2 {[%emt 0:00:01]} 43. Bxf7 {[%emt 0:00:01] Weighted Error Value: White=0.19 (very precise) /Black=0.38.  Loses game:     	---       	Black=1      Mistake:       	White=3     	Black=4      Inaccurate:     	White=3     	Black=4      OK:         	White=10    	Black=7      Best:        	White=3     	Black=1      Brilliant:      	White=1     	---} 1-0

[Event "4th Nikity Blitz 2024"]
[Site "Niteroi"]
[Date "2024.08.31"]
[Round "9.2"]
[White "Pires, Marcos Vinicius Tors"]
[Black "Do Valle Cardoso, Lucas"]
[Result "0-1"]
[ECO "D00"]
[WhiteElo "2212"]
[BlackElo "2365"]
[Annotator "RC"]
[PlyCount "42"]
[EventDate "2024.08.28"]
[EventType "swiss"]
[EventCountry "BRA"]
[SourceTitle "playchess.com"]
[Source "ChessBase"]
[SourceQuality "1"]
[TimeControl "180+2"]

1. d4 {[%emt 0:00:03]} d5 {[%emt 0:00:01]} 2. Bf4 {[%emt 0:00:02]} c5 {[%emt 0:00:01]} 3. e3 {[%emt 0:00:02]} Nc6 {[%emt 0:00:02]} 4. c3 {[%emt 0:00:03]} Qb6 {[%emt 0:00:02]} 5. Qb3 {[%emt 0:00:05]} c4 {[%emt 0:00:01]} 6. Qc2 {[%emt 0:00:02]} e5 {[%emt 0:00:09]} 7. dxe5 {[%emt 0:00:07]} Bf5 {[%emt 0:00:01]} 8. Qc1 {[%emt 0:00:03]} g5 {[%emt 0:00:01]} 9. Bg3 {[%emt 0:00:05]} h5 {[%emt 0:00:21]} 10. h4 {[%emt 0:00:07]} g4 {[%emt 0:00:02]} 11. Ne2 {[%emt 0:00:07]} Bg7 {[%emt 0:00:01]} 12. Nd4 {[%emt 0:00:06]} Nge7 {[%emt 0:00:02]} 13. Nxf5 {[%emt 0:00:29]} Nxf5 {[%emt 0:00:01]} 14. e4 {[%emt 0:00:13]} Nxg3 {[%emt 0:00:07]} 15. fxg3 {[%emt 0:00:02]} Bxe5 {[%emt 0:00:18]} 16. exd5 {[%emt 0:00:14]} Bxg3+ {[%emt 0:00:10]} 17. Kd1 {[%emt 0:00:02]} Ne5 {[%emt 0:00:30]} 18. Nd2 {[%emt 0:00:10]} O-O-O {[%emt 0:00:05]} 19. Nxc4 {[%emt 0:00:17]} Rxd5+ {[%emt 0:00:06]} 20. Kc2 {[%emt 0:00:05]} Qg6+ {[%emt 0:00:01]} 21. Kb3 {[%emt 0:00:20]} Rb5+ {[%emt 0:00:01]} 0-1